bitfinex/quotes_BTCUSD_20241022
["timestamp","ask_amount","ask_price","bid_price","bid_amount"]
[1729639153271,5.8308834,67557.0,67556.0,0.000837]
[1729639153711,5.8308735,67557.0,67556.0,0.000837]
[1729639153928,5.71553223,67557.0,67556.0,0.000837]
[1729639154367,0.26801181,67557.0,67556.0,0.134059]
[1729639154590,0.16801181,67557.0,67556.0,0.214259]
[1729639154856,0.16801181,67557.0,67556.0,0.307759]
[1729639155501,0.16273489,67557.0,67556.0,0.307759]
[1729639157316,0.16801463,67557.0,67556.0,0.307759]
[1729639157542,0.16273489,67557.0,67556.0,0.307759]
[1729639157750,0.16801463,67557.0,67556.0,0.307759]
[1729639157958,0.16801463,67557.0,67556.0,0.174537]
[1729639158382,0.16801463,67557.0,67556.0,0.307759]
[1729639158593,0.16273489,67557.0,67556.0,0.307759]
[1729639158799,0.16801463,67557.0,67556.0,0.310285]
[1729639159218,0.16801463,67557.0,67556.0,0.177063]
[1729639159866,0.33641987,67557.0,67556.0,0.174537]
[1729639160086,0.55210318,67557.0,67556.0,0.081037]
[1729639160727,0.55211362,67557.0,67556.0,0.081037]
[1729639162514,0.55211362,67557.0,67556.0,0.000837]
[1729639163858,0.55211362,67557.0,67556.0,0.003363]
[1729639164074,5.60211362,67557.0,67556.0,0.000837]
[1729639164307,5.71589801,67557.0,67556.0,0.000837]
[1729639164522,5.54749277,67557.0,67556.0,0.000837]
[1729639168905,3.44749277,67557.0,67556.0,0.000837]
[1729639169122,1.87549277,67557.0,67556.0,0.000837]
[1729639169338,1.81149277,67557.0,67556.0,0.000837]
[1729639169974,0.93449277,67557.0,67556.0,0.000837]
[1729639171293,0.18180946,67557.0,67556.0,0.212685]
[1729639171596,0.16802507,67557.0,67556.0,0.079463]
[1729639172025,0.30125542,67557.0,67556.0,0.076937]
[1729639172235,0.31505555,67557.0,67556.0,0.000837]
[1729639172438,0.43936565,67557.0,67556.0,0.000837]
[1729639172648,5.65777089,67557.0,67556.0,0.000837]
[1729639174374,5.53346079,67557.0,67556.0,0.000837]
[1729639174815,5.36505555,67557.0,67556.0,0.000837]
[1729639175199,5.33745889,67557.0,67556.0,0.000837]
[1729639175991,5.35127906,67557.0,67556.0,0.000837]
[1729639176954,5.3512847,67557.0,67556.0,0.000837]
[1729639177362,5.36511051,67557.0,67556.0,0.000837]
[1729639177570,0.31511051,67557.0,67556.0,0.000837]
[1729639177792,0.41400509,67557.0,67556.0,0.000837]
[1729639178267,5.36511051,67557.0,67556.0,0.000837]
[1729639178481,0.18189051,67557.0,67556.0,0.000837]
[1729639179543,0.31511051,67557.0,67556.0,0.000837]
[1729639180171,0.18189051,67557.0,67556.0,0.134059]
[1729639180387,0.15423889,67557.0,67556.0,0.000837]
[1729639180608,0.28388734,67557.0,67556.0,0.000837]
[1729639180813,0.43094095,67557.0,67556.0,0.000837]
[1729639181431,0.29772095,67557.0,67556.0,0.000837]
[1729639182497,0.18190611,67557.0,67556.0,0.000837]
[1729639183756,0.31512611,67557.0,67556.0,0.000837]
[1729639184183,0.3012925,67557.0,67556.0,0.000837]
[1729639184437,0.3151301,67557.0,67556.0,0.000837]
[1729639185674,5.3651301,67557.0,67556.0,0.000837]
[1729639185872,5.51408925,67557.0,67556.0,0.000837]
[1729639187347,5.58028839,67557.0,67556.0,0.000837]
[1729639187554,5.55827698,67557.0,67556.0,0.000837]
[1729639187983,5.55828329,67557.0,67556.0,0.000837]
[1729639188191,5.40932414,67557.0,67556.0,0.000837]
[1729639188397,5.43133555,67557.0,67556.0,0.000837]
[1729639188614,5.52829459,67557.0,67556.0,0.000837]
[1729639188841,5.57442104,67557.0,67556.0,0.000837]
[1729639189059,5.47756261,67557.0,67556.0,0.000837]
[1729639189239,5.41126286,67557.0,67556.0,0.000837]
[1729639189476,5.57448301,67557.0,67556.0,0.000837]
[1729639189710,5.66291683,67557.0,67556.0,0.000837]
[1729639190261,5.57448301,67557.0,67556.0,0.000837]
[1729639191341,5.72344216,67557.0,67556.0,0.000837]
[1729639193455,0.67344216,67557.0,67556.0,0.000837]
[1729639193672,5.72344216,67557.0,67556.0,0.000837]
[1729639195256,5.72344996,67557.0,67556.0,0.000837]
[1729639195673,5.72345079,67557.0,67556.0,0.000837]
[1729639195861,3.07949164,67557.0,67556.0,0.000837]
[1729639196105,3.07970757,67557.0,67556.0,0.000837]
[1729639201465,3.06586747,67557.0,67556.0,0.000837]
[1729639201605,3.07971352,67557.0,67556.0,0.000837]
[1729639203023,2.83271352,67557.0,67556.0,0.000837]
[1729639203256,2.45571352,67557.0,67556.0,0.000837]
[1729639203486,2.30271352,67557.0,67556.0,0.000837]
[1729639204416,2.30276271,67557.0,67556.0,0.000837]
[1729639205385,2.28891666,67557.0,67556.0,0.000837]
[1729639205603,2.36026888,67557.0,67556.0,0.000837]
[1729639206325,2.1695418,67557.0,67556.0,0.003363]
[1729639206566,0.4561585,67557.0,67556.0,0.303285]
[1729639207070,0.4561585,67557.0,67556.0,0.167537]
[1729639207071,0.34541535,67557.0,67556.0,0.167537]
[1729639207789,0.39156655,67557.0,67556.0,0.167537]
[1729639208724,0.39156655,67557.0,67556.0,0.30624531]
[1729639208725,0.03297093,67557.0,67556.0,0.30624531]
[1729639208947,0.03601334,67557.0,67556.0,0.303285]
[1729639209157,0.02216704,67557.0,67556.0,0.303285]
[1729639211410,0.01384605,67557.0,67556.0,0.303285]
[1729639212545,0.35499022,67565.0,67564.0,0.1667]
[1729639212772,5.56777729,67565.0,67564.0,0.1667]
[1729639212981,5.57611341,67565.0,67564.0,0.1667]
[1729639213209,5.35432819,67565.0,67564.0,0.1667]
[1729639214068,1.65932819,67565.0,67564.0,0.1667]
[1729639214272,0.30432819,67565.0,67564.0,0.1667]
[1729639215195,0.17112319,67565.0,67564.0,0.1667]
[1729639215614,0.30432819,67565.0,67564.0,0.1667]
[1729639215751,0.55613079,67565.0,67564.0,0.1667]
[1729639215985,0.54230287,67565.0,67564.0,0.1667]
[1729639216277,0.55611857,67565.0,67564.0,0.1667]
[1729639216461,0.55611694,67565.0,67564.0,0.1667]
[1729639216853,0.46763175,67565.0,67564.0,0.1667]
[1729639217132,0.33442675,67565.0,67564.0,0.1667]
[1729639217362,0.33442675,67565.0,67564.0,0.302433]
[1729639217363,0.02215019,67565.0,67564.0,0.302433]
[1729639217565,0.02215019,67565.0,67564.0,0.30539274]
[1729639217982,0.01381407,67565.0,67564.0,0.30539274]
[1729639218299,0.01381407,67565.0,67564.0,0.43644098]
[1729639218526,0.001654,67566.0,67565.0,0.325331]
[1729639227598,0.001654,67566.0,67565.0,0.327331]
[1729639232992,0.001654,67566.0,67565.0,0.427331]
[1729639233939,0.001654,67566.0,67565.0,0.59929015]
[1729639237533,0.001654,67566.0,67565.0,0.60011615]
[1729639262512,0.001654,67566.0,67565.0,0.64434432]
[1729639263354,0.001654,67566.0,67565.0,0.60011615]
[1729639264439,0.001654,67566.0,67565.0,0.66645841]
[1729639266406,0.001654,67566.0,67565.0,0.79401697]
[1729639267506,0.001654,67566.0,67565.0,0.72767471]
[1729639269568,0.001654,67566.0,67565.0,0.81613106]
[1729639271351,0.001654,67566.0,67565.0,0.72767471]
[1729639272652,0.001654,67566.0,67565.0,0.83870155]
[1729639273937,0.001654,67566.0,67565.0,0.72781823]
[1729639274171,0.001654,67566.0,67565.0,0.83871815]
[1729639274385,0.001654,67566.0,67565.0,0.83871647]
[1729639274600,0.001654,67566.0,67565.0,0.72781657]
[1729639275481,0.001654,67566.0,67565.0,0.84386481]
[1729639278138,0.001654,67566.0,67565.0,0.95477387]
[1729639278372,0.001654,67566.0,67565.0,0.84386481]
[1729639280634,1e-06,67566.0,67565.0,0.84386481]
[1729639282339,1e-06,67566.0,67565.0,0.72781657]
[1729639282837,0.22178522,67581.0,67580.0,0.43844924]
[1729639283036,0.22178522,67581.0,67580.0,0.44044924]
[1729639283453,0.001652,67587.0,67586.0,0.150689]
[1729639283637,0.001652,67587.0,67586.0,0.26673724]
[1729639283638,0.0155054,67587.0,67586.0,0.26673724]
[1729639284504,0.01550181,67587.0,67586.0,0.26873724]
[1729639285297,0.001652,67587.0,67586.0,0.26873724]
[1729639285516,0.001652,67587.0,67586.0,0.2716959]
[1729639286568,0.001652,67587.0,67586.0,0.26873724]
[1729639289260,0.001652,67587.0,67586.0,0.27169575]
[1729639289679,0.001652,67587.0,67586.0,0.55970314]
[1729639289680,1e-06,67587.0,67586.0,0.55970314]
[1729639289885,1e-06,67587.0,67586.0,0.82844463]
[1729639290319,1e-06,67587.0,67586.0,0.150689]
[1729639290533,1e-06,67587.0,67586.0,0.14364781]
[1729639290534,0.176101,67587.0,67586.0,0.14364781]
[1729639290748,0.176101,67587.0,67586.0,0.150689]
[1729639291585,0.095401,67587.0,67586.0,0.150689]
[1729639291820,1e-06,67587.0,67586.0,0.150689]
[1729639292018,1e-06,67587.0,67586.0,0.15364781]
[1729639292464,1e-06,67587.0,67586.0,0.150689]
[1729639293836,0.00665545,67587.0,67586.0,0.150689]
[1729639294957,0.00665545,67587.0,67586.0,0.145689]
[1729639296295,1e-06,67587.0,67586.0,0.145689]
[1729639296515,1e-06,67587.0,67586.0,0.140689]
[1729639304251,1e-06,67587.0,67586.0,0.141515]
[1729639305272,1e-06,67587.0,67586.0,0.14447387]
[1729639315296,1e-06,67587.0,67586.0,0.141515]
[1729639315508,0.0138525,67587.0,67586.0,0.141515]
[1729639316597,1e-06,67587.0,67586.0,0.141515]
[1729639325747,0.099601,67587.0,67586.0,0.136515]
[1729639325959,0.11345517,67587.0,67586.0,0.136515]
[1729639326175,0.12730828,67587.0,67586.0,0.136515]
[1729639326400,0.12007134,67587.0,67586.0,0.136515]
[1729639327310,0.38507873,67587.0,67586.0,0.136515]
[1729639327533,0.49018416,67587.0,67586.0,0.133989]
[1729639327740,0.75825149,67587.0,67586.0,0.133989]
[1729639327949,0.73341148,67587.0,67586.0,0.133989]
[1729639328158,0.64485801,67587.0,67586.0,0.133989]
[1729639328409,0.73343285,67587.0,67586.0,0.133989]
[1729639329277,0.64485801,67587.0,67586.0,0.133989]
[1729639329482,0.48132905,67587.0,67586.0,0.133989]
[1729639329671,0.64475944,67587.0,67586.0,0.133989]
[1729639330151,0.84001908,67587.0,67586.0,0.000826]
[1729639330380,0.71299201,67587.0,67586.0,0.000826]
[1729639330582,5.76296132,67587.0,67586.0,0.000826]
[1729639330832,5.76293062,67587.0,67586.0,0.000826]
[1729639331336,5.86581359,67587.0,67586.0,0.000826]
[1729639331559,5.99897459,67587.0,67586.0,0.000826]
[1729639331990,6.10397459,67587.0,67586.0,0.000826]
[1729639332222,6.10397459,67587.0,67570.0,0.22178522]
[1729639332223,0.11604824,67577.0,67570.0,0.22178522]
[1729639332431,0.18231491,67571.0,67570.0,0.22178522]
[1729639332636,5.6165921,67571.0,67567.0,0.1332]
[1729639332837,0.1602249,67568.0,67567.0,0.1332]
[1729639333017,0.34516319,67568.0,67564.0,0.003352]
[1729639333244,0.0996,67566.0,67564.0,0.136558]
[1729639333456,0.27623221,67566.0,67564.0,0.003352]
[1729639333871,0.28293052,67566.0,67564.0,0.003352]
[1729639334312,0.28289429,67566.0,67565.0,0.134031]
[1729639334685,0.28288664,67566.0,67565.0,0.134031]
[1729639335328,0.2691109,67566.0,67565.0,0.134031]
[1729639337259,0.1695109,67566.0,67565.0,0.134031]
[1729639337519,0.15565746,67566.0,67565.0,0.134031]
[1729639338164,0.15565746,67566.0,67565.0,0.136557]
[1729639342268,0.38775394,67566.0,67565.0,0.000826]
[1729639342478,0.58824895,67566.0,67565.0,0.000826]
[1729639342680,5.66037465,67566.0,67565.0,0.000826]
[1729639342911,5.67752941,67566.0,67565.0,0.000826]
[1729639343147,5.9425368,67566.0,67565.0,0.000826]
[1729639344897,5.79050942,67566.0,67565.0,0.000826]
[1729639345098,5.826231,67566.0,67565.0,0.000826]
[1729639345319,5.81249172,67566.0,67565.0,0.000826]
[1729639345500,5.82623166,67566.0,67565.0,0.000826]
[1729639346350,5.9422799,67566.0,67565.0,0.000826]
[1729639346555,5.9422799,67566.0,67565.0,0.020826]
[1729639346972,5.82623166,67566.0,67565.0,0.020826]
[1729639348563,5.82623309,67566.0,67565.0,0.020826]
[1729639349621,0.77623309,67566.0,67565.0,0.020826]
[1729639350203,5.82623309,67566.0,67565.0,0.020826]
[1729639352877,5.71018485,67566.0,67565.0,0.020826]
[1729639353102,5.71018485,67566.0,67565.0,0.154031]
[1729639353103,0.4081227,67566.0,67565.0,0.154031]
[1729639353319,0.16939796,67566.0,67565.0,0.253257]
[1729639353520,0.16269965,67566.0,67565.0,0.253257]
[1729639354393,0.18468445,67566.0,67565.0,0.253257]
[1729639355260,0.19101548,67566.0,67565.0,0.253257]
[1729639355490,0.19101548,67566.0,67565.0,0.250731]
[1729639355801,0.18468445,67566.0,67565.0,0.253257]
[1729639357369,0.19846226,67566.0,67565.0,0.253257]
[1729639357586,0.19846226,67566.0,67565.0,0.36930524]
[1729639357587,0.0357253,67566.0,67565.0,0.36930524]
[1729639357811,0.0357253,67566.0,67565.0,0.45080524]
[1729639358013,0.0357253,67566.0,67565.0,0.339757]
[1729639359140,0.01377781,67577.0,67576.0,0.313909]
[1729639359354,0.16877452,67577.0,67576.0,0.313909]
[1729639359556,0.20467708,67577.0,67576.0,0.313909]
[1729639360294,0.19090474,67577.0,67576.0,0.313909]
[1729639360526,0.19867796,67577.0,67576.0,0.313909]
[1729639360812,0.20471694,67577.0,67576.0,0.313909]
[1729639361868,0.20471694,67577.0,67576.0,0.31308375]
[1729639364142,0.15499813,67577.0,67576.0,0.31308375]
[1729639364207,0.20469548,67577.0,67576.0,0.31308375]
[1729639364384,0.1986565,67577.0,67576.0,0.31308375]
[1729639364614,0.20469656,67577.0,67576.0,0.31308375]
[1729639367785,0.19089174,67577.0,67576.0,0.31308375]
[1729639367982,0.20469055,67577.0,67576.0,0.31308375]
[1729639368288,0.16879802,67577.0,67576.0,0.31308375]
[1729639368405,0.20467493,67577.0,67576.0,0.31308375]
[1729639371478,0.15499921,67577.0,67576.0,0.31308375]
[1729639371789,0.20465905,67577.0,67576.0,0.31308375]
[1729639371888,0.20465905,67577.0,67576.0,0.33308375]
[1729639374292,0.20465905,67577.0,67576.0,0.33390975]
[1729639374453,0.20631105,67577.0,67576.0,0.33390975]
[1729639375470,0.20631325,67577.0,67576.0,0.33390975]
[1729639378398,0.20631325,67577.0,67576.0,0.020826]
[1729639378399,0.32242321,67577.0,67576.0,0.020826]
[1729639378842,0.36156636,67577.0,67576.0,0.020826]
[1729639379409,0.33397536,67577.0,67576.0,0.020826]
[1729639379478,0.48037819,67577.0,67576.0,0.020826]
[1729639379700,0.48038413,67577.0,67576.0,0.020826]
[1729639380418,0.59073216,67577.0,67576.0,0.020826]
[1729639380626,0.70837154,67577.0,67576.0,0.020826]
[1729639381385,0.11604824,67573.0,67568.0,0.00170075]
[1729639381634,0.133195,67570.0,67568.0,0.00170075]
[1729639381850,0.17656771,67569.0,67568.0,0.00170075]
[1729639382116,0.30976471,67569.0,67568.0,0.00170075]
[1729639382321,0.35993613,67569.0,67568.0,0.00170075]
[1729639382526,0.18259811,67569.0,67568.0,0.00170075]
[1729639385870,0.18261103,67569.0,67568.0,0.00170075]
[1729639387019,0.18261103,67569.0,67568.0,0.13489975]
[1729639387226,0.03365188,67569.0,67568.0,0.30269975]
[1729639387389,0.01984114,67569.0,67568.0,0.30269975]
[1729639387608,0.01381074,67569.0,67568.0,0.30352575]
[1729639388298,0.01381074,67569.0,67568.0,0.30648545]
[1729639388497,0.01381074,67569.0,67568.0,0.30352575]
[1729639388953,0.01381074,67569.0,67568.0,0.31148544]
[1729639389191,0.01381074,67569.0,67568.0,0.30852575]
[1729639389302,0.22178522,67579.0,67568.0,0.17532675]
[1729639389590,0.20470796,67576.0,67575.0,0.13488575]
[1729639389741,0.20470697,67576.0,67575.0,0.21148575]
[1729639390376,0.1826093,67576.0,67575.0,0.21148575]
[1729639390793,0.18260944,67576.0,67575.0,0.21148575]
[1729639399775,0.03365029,67576.0,67575.0,0.30868575]
[1729639399987,0.01381118,67576.0,67575.0,0.43055999]
[1729639400369,0.001652,67576.0,67575.0,0.44055999]
[1729639401738,0.001652,67576.0,67575.0,0.55660823]
[1729639401933,0.001652,67576.0,67575.0,0.44055999]
[1729639402360,0.001652,67576.0,67575.0,0.55660823]
[1729639402770,0.001652,67576.0,67575.0,0.44055999]
[1729639402971,0.001652,67576.0,67575.0,0.55660823]
[1729639403325,0.001652,67576.0,67575.0,0.44055999]
[1729639403531,0.001652,67576.0,67575.0,0.55660823]
[1729639404001,0.001652,67576.0,67575.0,0.55860823]
[1729639406908,0.001652,67576.0,67575.0,0.65860823]
[1729639409178,0.001652,67576.0,67575.0,0.83056738]
[1729639410603,0.001652,67586.0,67585.0,0.17940075]
[1729639410831,0.00769881,67586.0,67585.0,0.42861399]
[1729639411242,0.001652,67586.0,67585.0,0.42861399]
[1729639413502,0.001652,67586.0,67585.0,0.43861399]
[1729639416543,0.001652,67586.0,67585.0,0.82662138]
[1729639416769,0.001652,67586.0,67585.0,0.82862138]
[1729639416958,0.001652,67586.0,67585.0,0.71257314]
[1729639418073,0.001652,67586.0,67585.0,0.82862138]
[1729639418286,0.001652,67586.0,67585.0,0.71257314]
[1729639418536,0.001652,67591.0,67590.0,0.56580399]
[1729639418748,0.001652,67591.0,67590.0,0.83081138]
[1729639419196,0.001652,67591.0,67590.0,0.83281138]
[1729639421550,1e-06,67591.0,67590.0,0.83281138]
[1729639425226,1e-06,67591.0,67590.0,0.86242138]
[1729639425431,1e-06,67591.0,67590.0,0.83281138]
[1729639430217,0.001652,67596.0,67595.0,0.27484575]
[1729639430426,0.001652,67596.0,67595.0,0.83615941]
[1729639430632,0.001652,67596.0,67595.0,0.83320138]
[1729639432849,0.22178522,67616.0,67595.0,0.83320138]
[1729639432850,0.22178522,67616.0,67605.0,0.68422323]
[1729639433058,0.22178522,67616.0,67605.0,0.94923062]
[1729639433264,0.22178522,67616.0,67608.0,0.24982075]
[1729639433681,0.22178522,67616.0,67608.0,0.36586899]
[1729639434500,0.22178522,67616.0,67608.0,0.41787568]
[1729639440431,0.22178522,67616.0,67608.0,0.41987568]
[1729639440602,0.22178522,67616.0,67608.0,0.41787568]
[1729639448208,0.22178522,67616.0,67608.0,0.24982075]
[1729639448450,0.22178522,67616.0,67608.0,0.41787568]
[1729639448664,0.22178522,67616.0,67608.0,0.24982075]
[1729639448870,0.22178522,67616.0,67608.0,0.41787568]
[1729639454454,0.22178522,67616.0,67608.0,0.36563276]
[1729639456495,0.001652,67620.0,67608.0,0.36563276]
[1729639456698,0.01381826,67619.0,67608.0,0.69289191]
[1729639456868,0.01381826,67618.0,67608.0,0.69289191]
[1729639457063,0.23560348,67617.0,67608.0,0.69089191]
[1729639457458,0.22178522,67617.0,67608.0,0.54193276]
[1729639464717,0.006652,67610.0,67609.0,0.11670075]
[1729639464917,0.006652,67610.0,67609.0,0.24981875]
[1729639470750,0.02049013,67610.0,67609.0,0.24981875]
[1729639471141,0.008304,67610.0,67609.0,0.24981875]
[1729639471349,0.0221422,67610.0,67609.0,0.24981875]
[1729639471554,0.008304,67610.0,67609.0,0.24981875]
[1729639471763,0.02214395,67610.0,67609.0,0.24981875]
[1729639473148,0.008304,67610.0,67609.0,0.24981875]
[1729639474102,0.02214387,67610.0,67609.0,0.24981875]
[1729639474710,0.0359827,67610.0,67609.0,0.24981875]
[1729639474914,0.02214387,67610.0,67609.0,0.24981875]
[1729639476318,0.02214387,67610.0,67609.0,0.36563076]
[1729639476920,0.03598203,67610.0,67609.0,0.36563076]
[1729639477412,0.0359804,67610.0,67609.0,0.36563076]
[1729639477548,0.0221422,67610.0,67609.0,0.36563076]
[1729639482633,0.0221422,67610.0,67609.0,0.13481875]
[1729639482634,0.02214061,67610.0,67609.0,0.13481875]
[1729639482867,0.35913495,67610.0,67609.0,0.13481875]
[1729639483072,0.40992968,67610.0,67609.0,0.13481875]
[1729639483283,0.36566214,67610.0,67609.0,0.13564475]
[1729639483510,0.43203559,67610.0,67609.0,0.13564475]
[1729639483753,0.36566214,67610.0,67609.0,0.13564475]
[1729639483989,0.36566214,67610.0,67609.0,0.133944]
[1729639483990,0.61753574,67610.0,67609.0,0.133944]
[1729639484249,0.60370055,67610.0,67609.0,0.13564475]
[1729639484418,0.52899458,67610.0,67609.0,0.13564475]
[1729639484654,0.61745798,67610.0,67609.0,0.13564475]
[1729639485324,0.6173944,67610.0,67609.0,0.13564475]
[1729639486534,0.36565607,67610.0,67609.0,0.13564475]
[1729639487823,0.41812494,67610.0,67609.0,0.13564475]
[1729639487910,0.43193469,67610.0,67609.0,0.13564475]
[1729639488596,0.40983378,67610.0,67609.0,0.13564475]
[1729639488810,0.36562921,67610.0,67609.0,0.13564475]
[1729639488993,0.40983378,67610.0,67609.0,0.13564475]
[1729639489667,0.36562921,67610.0,67609.0,0.13564475]
[1729639491114,0.40983378,67610.0,67609.0,0.13564475]
[1729639491372,0.36562921,67610.0,67609.0,0.13564475]
[1729639491639,0.35179179,67610.0,67609.0,0.13564475]
[1729639491859,0.36559324,67610.0,67609.0,0.13564475]
[1729639493995,0.28989324,67610.0,67609.0,0.13564475]
[1729639495183,0.28989153,67610.0,67609.0,0.13564475]
[1729639498633,0.27609008,67610.0,67609.0,0.13564475]
[1729639498847,0.28989023,67610.0,67609.0,0.13564475]
[1729639499040,0.28989013,67610.0,67609.0,0.13564475]
[1729639500527,0.19139013,67610.0,67609.0,0.13564475]
[1729639501218,0.16379034,67610.0,67609.0,0.13564475]
[1729639501435,0.17258845,67610.0,67609.0,0.13564475]
[1729639501665,0.18638656,67610.0,67609.0,0.13564475]
[1729639505049,0.17258845,67610.0,67609.0,0.13564475]
[1729639505156,0.18639077,67610.0,67609.0,0.13564475]
[1729639505697,0.18639077,67610.0,67609.0,0.000826]
[1729639505698,0.37720278,67610.0,67609.0,0.000826]
[1729639505923,0.42134863,67610.0,67609.0,0.000826]
[1729639506130,0.42134863,67610.0,67592.0,0.01]
[1729639506131,0.133138,67599.0,67594.0,0.00170075]
[1729639506336,0.133138,67599.0,67592.0,0.00170075]
[1729639506337,0.47296248,67599.0,67592.0,0.00170075]
[1729639506501,0.47296248,67599.0,67594.0,0.00170075]
[1729639506502,5.82372691,67599.0,67594.0,0.00170075]
[1729639506702,5.82372691,67599.0,67592.0,0.00170075]
[1729639506703,5.81778998,67599.0,67592.0,0.00170075]
[1729639506901,5.81778998,67599.0,67590.0,0.000826]
[1729639506902,5.81778998,67599.0,67594.0,0.00170075]
[1729639507127,5.68465198,67599.0,67594.0,0.00170075]
[1729639507375,5.79488189,67599.0,67594.0,0.00170075]
[1729639507515,5.92801989,67599.0,67594.0,0.00170075]
[1729639507891,5.92784658,67599.0,67594.0,0.00170075]
[1729639508218,5.81761768,67599.0,67594.0,0.00170075]
[1729639508857,5.80381536,67599.0,67594.0,0.00170075]
[1729639509068,5.80381536,67599.0,67590.0,0.13398]
[1729639509069,5.81759212,67599.0,67590.0,0.13568075]
[1729639509265,5.90569667,67599.0,67594.0,0.00170075]
[1729639509464,5.77255867,67599.0,67594.0,0.00170075]
[1729639510100,5.90569667,67599.0,67594.0,0.00170075]
[1729639510342,5.65483226,67599.0,67594.0,0.00170075]
[1729639510599,5.72089381,67599.0,67594.0,0.00170075]
[1729639510842,5.65483226,67599.0,67594.0,0.00170075]
[1729639511374,2.40492909,67599.0,67594.0,0.00170075]
[1729639511656,1.13872715,67599.0,67594.0,0.00170075]
[1729639511861,1.13872662,67599.0,67594.0,0.00170075]
[1729639512829,1.22783226,67599.0,67594.0,0.00170075]
[1729639513060,1.27186462,67599.0,67594.0,0.00170075]
[1729639513547,1.22783226,67599.0,67594.0,0.00170075]
[1729639514316,1.22783226,67599.0,67591.0,0.133153]
[1729639514550,1.22783226,67599.0,67594.0,0.00170075]
[1729639515666,1.15583226,67599.0,67594.0,0.00170075]
[1729639515880,0.98233226,67599.0,67594.0,0.00170075]
[1729639517733,0.98233226,67599.0,67592.0,0.00170075]
[1729639519499,0.98233226,67599.0,67594.0,0.00170075]
[1729639519635,0.98233226,67599.0,67592.0,0.00170075]
[1729639519838,0.98233226,67599.0,67594.0,0.00170075]
[1729639520061,0.98229403,67599.0,67594.0,0.00170075]
[1729639520448,0.98229403,67599.0,67590.0,0.000826]
[1729639520449,1.51966519,67599.0,67590.0,0.000826]
[1729639520619,0.133153,67591.0,67590.0,0.000826]
[1729639520758,0.133153,67591.0,67583.0,0.22178522]
[1729639520759,0.133167,67584.0,67583.0,0.22178522]
[1729639520951,0.14895915,67584.0,67583.0,0.22178522]
[1729639521152,0.14895915,67584.0,67577.0,0.000826]
[1729639521153,0.16273591,67584.0,67581.0,0.13487175]
[1729639521367,0.06599506,67590.0,67582.0,0.00170075]
[1729639521368,0.16273591,67583.0,67582.0,0.00170075]
[1729639521573,0.16854208,67583.0,67582.0,0.00170075]
[1729639521825,0.16854208,67583.0,67582.0,0.13487175]
[1729639522026,0.16854208,67583.0,67582.0,0.00170075]
[1729639523150,0.01958293,67583.0,67582.0,0.21717175]
[1729639523347,0.01958293,67583.0,67582.0,0.31697175]
[1729639523629,0.01375292,67583.0,67582.0,0.31697175]
[1729639523787,0.01956196,67583.0,67582.0,0.31697175]
[1729639525173,0.01956196,67583.0,67582.0,0.18380075]
[1729639525513,0.01956196,67583.0,67582.0,0.31697175]
[1729639525860,0.01956196,67583.0,67582.0,0.18380075]
[1729639526457,0.01956196,67583.0,67582.0,0.31697175]
[1729639526663,0.01956196,67583.0,67582.0,0.18380075]
[1729639529156,0.01956196,67583.0,67582.0,0.18462675]
[1729639530925,0.01957315,67583.0,67582.0,0.18462675]
[1729639531035,0.00580904,67583.0,67582.0,0.18462675]
[1729639531233,0.01957316,67583.0,67582.0,0.18462675]
[1729639531432,0.02752823,67583.0,67582.0,0.18462675]
[1729639531692,0.03331753,67583.0,67582.0,0.18462675]
[1729639531903,0.03331753,67583.0,67582.0,0.00252675]
[1729639532168,0.03331753,67583.0,67576.0,0.055]
[1729639532169,0.005,67559.0,67558.0,0.8878038]
[1729639532366,0.01376412,67559.0,67558.0,0.8878038]
[1729639532776,0.01576412,67559.0,67558.0,0.8878038]
[1729639533003,0.01576412,67559.0,67551.0,0.8878038]
[1729639533004,0.007,67557.0,67551.0,0.8878038]
[1729639533210,0.13657613,67557.0,67551.0,0.8878038]
[1729639533664,0.14158819,67557.0,67551.0,0.8878038]
[1729639534316,0.19420573,67557.0,67551.0,0.8878038]
[1729639534594,0.20796984,67557.0,67551.0,0.8878038]
[1729639537726,0.35692899,67557.0,67551.0,0.8878038]
[1729639538284,0.17473533,67557.0,67551.0,0.8878038]
[1729639540024,0.17471164,67557.0,67551.0,0.8878038]
[1729639541378,0.01875249,67557.0,67551.0,1.1542668]
[1729639541668,0.00501206,67557.0,67556.0,0.312459]
[1729639541753,0.00501206,67557.0,67556.0,0.179237]
[1729639541946,0.01374043,67560.0,67556.0,0.179237]
[1729639542165,0.002,67561.0,67556.0,0.000837]
[1729639542166,0.16842955,67557.0,67556.0,0.000837]
[1729639542370,0.3193887,67557.0,67556.0,0.000837]
[1729639542583,0.33812913,67557.0,67556.0,0.000837]
[1729639542974,0.16969958,67557.0,67556.0,0.000837]
[1729639543178,0.15595915,67557.0,67556.0,0.000837]
[1729639544726,0.16969958,67557.0,67556.0,0.000837]
[1729639544936,0.15595915,67557.0,67556.0,0.000837]
[1729639545385,0.16969301,67557.0,67556.0,0.000837]
[1729639545975,0.17552307,67557.0,67556.0,0.000837]
[1729639548831,0.17553085,67557.0,67556.0,0.000837]
[1729639549942,0.17353085,67557.0,67556.0,0.000837]
[1729639550155,0.0195717,67557.0,67556.0,0.134059]
[1729639550559,0.01374164,67557.0,67556.0,0.134059]
[1729639553692,0.01374164,67557.0,67556.0,0.313159]
[1729639557647,0.01574164,67557.0,67556.0,0.313159]
[1729639557895,0.01374164,67557.0,67556.0,0.313159]
[1729639558140,0.01374164,67557.0,67556.0,0.000837]
[1729639558141,0.19468741,67557.0,67556.0,0.000837]
[1729639558378,0.21042903,67557.0,67556.0,0.000837]
[1729639558629,0.21538578,67557.0,67556.0,0.000837]
[1729639559656,0.1609159,67557.0,67556.0,0.000837]
[1729639559831,0.21053221,67557.0,67556.0,0.000837]
[1729639561053,0.24590683,67557.0,67556.0,0.000837]
[1729639562136,0.21009543,67557.0,67556.0,0.000837]
[1729639562263,0.24598831,67557.0,67556.0,0.000837]
[1729639564143,0.21061369,67557.0,67556.0,0.000837]
[1729639565858,0.21059926,67557.0,67556.0,0.000837]
[1729639569484,0.19680102,67557.0,67556.0,0.000837]
[1729639569539,0.21060299,67557.0,67556.0,0.000837]
[1729639570769,0.05664384,67557.0,67556.0,0.000837]
[1729639571015,0.05464384,67557.0,67556.0,0.225959]
[1729639571184,0.04968709,67557.0,67556.0,0.225959]
[1729639571524,0.02760394,67557.0,67556.0,0.225959]
[1729639571728,0.04968709,67557.0,67556.0,0.225959]
[1729639571946,0.02760394,67557.0,67556.0,0.225959]
[1729639573022,0.002,67561.0,67556.0,0.092737]